Cogmind - Beta 16.1 @@@ ROGUE MODE // 2026.04.15 @ 15:48:14 Player: Elxavo Result: Destroyed by D-53 Grenadier with Mini Grenade Launcher Performance ------------- Evolutions (1) 500 Regions Visited (3) 600 Robots Destroyed (19) 95 Value Destroyed (429) 429 Prototype IDs (0) 0 Alien Tech Used (0) 0 Bonus (0) 0 TOTAL SCORE: 1624 Bonus ------- None Cogmind --------- Core Integrity 0/400 Matter 300/300 Energy 100/100 System Corruption 0% Temperature Cool (0) Movement Core (200) Ox3 Location -9/Mines Parts ------- > --- POWER (1) -------- (None) > --- PROPULSION (2) --- (None) > --- UTILITY (4) ------ Medium Storage Unit > --- WEAPON (2) ------- (None) > --- INVENTORY (10) --- Light Ion Engine Light Treads Light Treads Aluminum Leg ECM Suite Light Armor Plating Light Cannon Light Cannon Shock Trap Peak State ------------ > --- POWER ------------ Light Nuclear Core > --- PROPULSION ------- Aluminum Leg Aluminum Leg > --- UTILITY ---------- Improved Heat Sink Medium Storage Unit Seismic Detector Tractor Beam > --- WEAPON ----------- Light Assault Rifle Light Cannon > --- INVENTORY -------- Light Ion Engine Light Ion Engine Light Treads Light Treads Aluminum Leg ECM Suite Light Armor Plating Light Cannon Light Cannon Shock Trap [Rating: 14] Favorites ----------- Power Light Nuclear Core Engine Light Ion Engine Power Core Light Nuclear Core Propulsion Aluminum Leg Leg Aluminum Leg Utility Seismic Detector Device Seismic Detector Storage Medium Storage Unit Protection Light Armor Plating Weapon Light Cannon Ballistic Gun Assault Rifle Ballistic Cannon Light Cannon Build | -11 -10 -9 -9 ------- Run | Yrd Mat Mat Min Slots Evolved 2 | . . 2 . Power . | . . . . Propulsion . | . . . . Utility 2 | . . 2 . Weapon . | . . . . Parts Attached 17 | 7 4 2 4 Power 3 | 1 1 . 1 Engine 2 | 1 . . 1 Core 1 | . 1 . . Reactor . | . . . . Propulsion 4 | 2 . . 2 Treads . | . . . . Leg 4 | 2 . . 2 Wheel . | . . . . Hover . | . . . . Flight . | . . . . Utility 7 | 2 2 2 1 Device 4 | 1 1 1 1 Storage 2 | 1 1 . . Processor . | . . . . Hackware . | . . . . Protection 1 | . . 1 . Artifact . | . . . . Weapon 3 | 2 1 . . Energy Gun . | . . . . Energy Cannon . | . . . . Ballistic Gun 2 | 2 . . . Ballistic Cannon 1 | . 1 . . Launcher . | . . . . Special Weapon . | . . . . Impact Weapon . | . . . . Slashing Weapon . | . . . . Piercing Weapon . | . . . . Special Melee Weapon . | . . . . Unidentified Prototypes . | . . . . Parts Lost 13 | . 1 . 12 Power 2 | . . . 2 Propulsion 3 | . . . 3 Utility 5 | . 1 . 4 Weapon 3 | . . . 3 Highest Loss Streak 8 | . 1 . 8 To Critical Strikes . | . . . . Average Backups 7 | 4 8 8 8 Power 1 | . 1 1 1 Propulsion 2 | 2 2 2 2 Utility 1 | . 2 2 2 Weapon 2 | . 2 3 2 Tool/Special . | . . . . Unused Backups 11 | . 4 . 7 Power 2 | . 1 . 1 Propulsion 4 | . 2 . 2 Utility 2 | . . . 2 Weapon 3 | . 1 . 2 Tool/Special . | . . . . Average Slot Usage (%) 94 | . 100 99 78 Engine 5 | . 8 . 4 Core 6 | . 5 11 5 Leg 23 | . 28 22 16 Device 18 | . 14 22 24 Storage 12 | . 14 11 11 Protection 2 | . . 10 1 Ballistic Gun 12 | . 15 11 7 Ballistic Cannon 11 | . 12 11 8 Peak Build Rating 14 | 7 10 11 14 Average Rating 8 | 5 7 10 9 On Entrance 7 | . 7 10 11 Avg Prop Armor Cover (%) 7 | . . . 7 Naked Turns . | . . . . Heaviest Build 25 | 12 21 25 22 Greatest Support 20 | 20 20 20 20 Greatest Overweight (x) 4 | . 1 1 4 Average Overweight (x) . | . . 1 1 Largest Inventory Capacity 10 | 8 10 10 10 Average Capacity 8 | 7 8 10 10 Most Carried 10 | 8 10 9 10 Average Carried 7 | 4 8 8 8 Final Capacity 10 | 8 10 10 10 Final Carried 10 | 8 10 8 9 Class Distribution -------------------- 85% | Mutant 14% | Scavenger-Mutant Dominant Class ---------------- Mutant | -10/Materials Mutant | -9/Materials Scavenger-Mutant | -9/Mines Resources | -11 -10 -9 -9 ----------- Run | Yrd Mat Mat Min Matter Collected 728 | 294 233 47 154 Remotely 312 | . 111 47 154 Salvage Created 591 | 109 258 42 182 Parts 46 | 8 28 1 9 Haulers Intercepted . | . . . . Recyclers Shooed 1 | . 1 . . Parts Field Recycled . | . . . . Retrieved Matter . | . . . . Parts Self-Destructed . | . . . . Prevented . | . . . . Parts Restored . | . . . . Kills | -11 -10 -9 -9 ------- Run | Yrd Mat Mat Min Combat Hostiles Destroyed 18 | . 12 1 5 Guns 6 | . 5 . 1 Cannons 12 | . 7 1 4 Classes Destroyed 6 | 2 2 1 1 Tunneler 2 | 2 . . . Recycler 2 | 1 . . 1 Swarmer 6 | . 6 . . Grunt 8 | . 6 . 2 Sentry 1 | . . 1 . Assembled 3 | . . . 3 Best Kill Streak 5 | 2 5 1 2 Combat Bots Only 5 | . 5 1 2 Max Kills in Single Turn 1 | 1 1 1 1 Gunslinging . | . . . . Exploded . | . . . . Melee . | . . . . Uniques/NPCs Destroyed . | . . . . Combat | -11 -10 -9 -9 -------- Run | Yrd Mat Mat Min Hostile Shots Fired 97 | . 47 10 40 Missed 17 | . 12 1 4 Hits 80 | . 35 9 36 Projectile 80 | . 35 9 36 AOE 19 | . . . 19 Part Disruptions 2 | . . . 2 Damage Taken 1478 | . 334 131 1013 Core 465 | . 58 15 392 Absorbed by Shields . | . . . . Core Remaining (%) 88 | 100 76 . . Volleys Fired 63 | 9 29 4 21 Largest 2 | 2 2 2 2 Hottest 50 | 40 50 50 50 Shots Fired 111 | 14 58 8 31 Gun 58 | 14 30 4 10 Cannon 53 | . 28 4 21 Launcher . | . . . . Special . | . . . . Kinetic 111 | 14 58 8 31 Thermal . | . . . . Explosive . | . . . . Electromagnetic . | . . . . Robot Hit Streak 11 | 4 11 9 8 Robot Miss Streak 3 | 2 2 . 3 Penetration Max . | . . . . Secondary Targets . | . . . . Shots Hit Robots 74 | 8 39 8 19 Core Hits 40 | 8 20 2 10 Critical Kills 1 | 1 . . . Critical Parts Destroyed . | . . . . Critical Strikes 2 | 1 . . 1 Destroy 1 | 1 . . . Blast 1 | . . . 1 Melee Attacks . | . . . . Impact . | . . . . Slashing . | . . . . Piercing . | . . . . Sneak Attacks . | . . . . Combat Hostiles . | . . . . Follow-up Attacks . | . . . . Damage Inflicted 1069 | 74 557 126 312 Guns 477 | 74 294 56 53 Cannons 592 | . 263 70 259 Explosions . | . . . . Melee . | . . . . Ramming . | . . . . Kinetic 1069 | 74 557 126 312 Thermal . | . . . . Explosive . | . . . . Electromagnetic . | . . . . Impact . | . . . . Slashing . | . . . . Piercing . | . . . . Highest Corruption 2 | . 2 . . Average Corruption 2 | . 2 . . Corruption Purged . | . . . . Corruption Blocked . | . . . . Effects 8 | . 8 . . Message Errors 2 | . 2 . . Matter Fused 2 | . 2 . . Energy Discharges 1 | . 1 . . Data Loss (minor) 1 | . 1 . . Data Loss (major) 1 | . 1 . . Alerts 1 | . 1 . . Overload Shots . | . . . . Overflow Damage 16 | . 7 . 9 Projectiles 16 | . 7 . 9 Explosions . | . . . . Melee . | . . . . Knockbacks 4 | . 1 . 3 Impact . | . . . . Kinetic 3 | . . . 3 Secondary 1 | . 1 . . Self-Inflicted Damage . | . . . . Shots . | . . . . Rammed . | . . . . Targets Rammed . | . . . . Kicked . | . . . . Crushed . | . . . . Highest Temperature 53 | . 12 13 53 Average Temperature 17 | . 4 7 38 Received Heat Transfer 375 | . 117 36 222 Siege Activations . | . . . . Martial Activations . | . . . . Shielding Activations . | . . . . Robots Disrupted . | . . . . Combat Hostiles . | . . . . Robots Corrupted . | . . . . Combat Hostiles . | . . . . Parts Fried . | . . . . Impact Corruptions . | . . . . Robots Melted . | . . . . Combat Hostiles . | . . . . Parts Melted . | . . . . Heat Transferred . | . . . . Parts Sabotaged . | . . . . Parts Stolen . | . . . . Parts Stripped . | . . . . Power Chain Reactions . | . . . . Alert | -11 -10 -9 -9 ------- Run | Yrd Mat Mat Min Maximum Alert Level 1 | . 1 . . Low Security (%) 93 | 100 85 100 100 Level 1 6 | . 14 . . Level 2 . | . . . . Level 3 . | . . . . Level 4 . | . . . . Level 5 . | . . . . High Security . | . . . . Max Security . | . . . . Peak Influence 225 | 10 225 67 30 Initial 67 | . . 67 7 Average 45 | 1 82 25 5 Influence Increases 427 | 15 327 30 55 Destroy 0b10 Robot/C 300 | . 240 20 40 Destroy 0b10 Robot/NC 20 | 15 . . 5 Destroy Leader 60 | . 40 10 10 Destroy Structure 2 | . 2 . . Lose Combat Pursuer 45 | . 45 . . Influence Decreases 427 | 15 166 171 75 Entered New Map 107 | . . 94 13 Time Decay 283 | 15 156 77 35 Lost Part 37 | . 10 . 27 Squads Dispatched 1 | . 1 . . Investigation . | . . . . Extermination . | . . . . Reinforcement 1 | . 1 . . Assault . | . . . . Garrison . | . . . . Intercept . | . . . . Searches Triggered . | . . . . Construction Impeded . | . . . . Haulers Reinforced . | . . . . Active Scanning Responses . | . . . . Cargo Convoy Interrupts . | . . . . Stealth | -11 -10 -9 -9 --------- Run | Yrd Mat Mat Min Distress Signals . | . . . . Communications Jammed . | . . . . Distress Signals . | . . . . Times Spotted 26 | . 16 1 9 Peak Tracking Total 5 | . 5 1 5 Tactical Retreats 2 | . 2 . . Traps | -11 -10 -9 -9 ------- Run | Yrd Mat Mat Min Traps Triggered 1 | . 1 . . Indirectly . | . . . . Trap Hack Attempts . | . . . . Triggered . | . . . . Disarmed . | . . . . Reprogrammed . | . . . . Reused . | . . . . Traps Extracted . | . . . . Installed . | . . . . Triggered . | . . . . Most Traps Carried 1 | . . . 1 Machines | -11 -10 -9 -9 ---------- Run | Yrd Mat Mat Min Machines Disabled . | . . . . Max in Single Turn . | . . . . Machines Repaired . | . . . . Machines Dismantled . | . . . . Machines Sabotaged . | . . . . Overloaded Fab Kills . | . . . . Hacking | -11 -10 -9 -9 --------- Run | Yrd Mat Mat Min Machines Accessed 2 | . 2 . . Terminals 2 | . 2 . . Fabricators . | . . . . Repair Stations . | . . . . Recycling Units . | . . . . Scanalyzers . | . . . . Garrison Access . | . . . . Total Hacks 4 | . 4 . . Successful 2 | . 2 . . Failed 2 | . 2 . . Catastrophic . | . . . . Database Lockouts . | . . . . Manual . | . . . . Terminals 4 | . 4 . . Fabricators . | . . . . Repair Stations . | . . . . Recycling Units . | . . . . Scanalyzers . | . . . . Garrison Access . | . . . . Terminal Hacks 2 | . 2 . . Hauler Manifests 1 | . 1 . . Zone Layout 1 | . 1 . . Fabricator Hacks . | . . . . Repair Station Hacks . | . . . . Recycling Unit Hacks . | . . . . Scanalyzer . | . . . . Garrison Access Hacks . | . . . . Unauthorized Hacks . | . . . . Terminals . | . . . . Fabricators . | . . . . Repair Stations . | . . . . Recycling Units . | . . . . Scanalyzers . | . . . . Garrison Access . | . . . . Data Cores Recovered . | . . . . Used . | . . . . Hacking Detections 1 | . 1 . . Full Trace Events . | . . . . Feedback Events . | . . . . Feedback Blocked . | . . . . Robot Schematics Acquired . | . . . . Robots Built . | . . . . Authchips . | . . . . Time . | . . . . Total Robot Build Rating . | . . . . Part Schematics Acquired . | . . . . Parts Built . | . . . . Authchips . | . . . . Time . | . . . . Total Part Build Rating . | . . . . Part Studies Acquired . | . . . . Parts Repaired . | . . . . Time . | . . . . Parts Recycled . | . . . . Recycled Matter . | . . . . Retrieved Matter . | . . . . Retrieved Components . | . . . . Parts Scanalyzed . | . . . . Part Schematics Acquired . | . . . . Parts Damaged . | . . . . Bothacking | -11 -10 -9 -9 ------------ Run | Yrd Mat Mat Min Used RIF Installer . | . . . . Robots Hacked . | . . . . Non-combat . | . . . . Combat . | . . . . Robot Hacks Applied . | . . . . Relay Couplers Released . | . . . . Fabnet Peak Effective % . | . . . . Robots Rewired . | . . . . Allies Hacked . | . . . . Hacks Repelled . | . . . . Allies | -11 -10 -9 -9 -------- Run | Yrd Mat Mat Min Total Allies . | . . . . Largest Group . | . . . . Highest-Rated Group . | . . . . Highest-Rated Ally . | . . . . Total Orders . | . . . . Ally Attacks . | . . . . Total Damage . | . . . . Kills . | . . . . Allies Corrupted . | . . . . Allies Melted . | . . . . Intel | -11 -10 -9 -9 ------- Run | Yrd Mat Mat Min Active Infowar (turns) 979 | 25 463 238 253 Seismic 979 | 25 463 238 253 Robot Analysis Total . | . . . . Derelict Logs Recovered . | . . . . Drone Launches . | . . . . Drone Recoveries . | . . . . Exploration | -11 -10 -9 -9 ------------- Run | Yrd Mat Mat Min Turns Passed 1296 | 113 623 238 322 Spaces Moved 460 | 53 183 113 111 Core 29 | 3 . . 26 Treads . | . . . . Legs 431 | 50 183 113 85 Wheels . | . . . . Hover . | . . . . Flight . | . . . . Fastest Speed 50 | 50 120 190 190 Average Speed 161 | 116 135 190 197 Slowest Speed 260 | 120 190 190 260 Overloaded Moves . | . . . . Propulsion Burnouts . | . . . . Robots Hopped . | . . . . Potential Cave-ins 1 | . . . 1 Cave-ins Triggered . | . . . . Exploration Rate (%) 20 | 5 30 14 33 Regions Visited 3 Branch Regions 1 Pre-discovered Areas . | . . . . Known Exits Taken . | . . . . Unknown Exits Taken 3 | 1 1 1 . Scrap Searched . | . . . . Spaces Dug . | . . . . Terrain Destroyed . | . . . . Melee . | . . . . Projectile . | . . . . AOE . | . . . . Terrain Rammed . | . . . . Walls Destroyed . | . . . . Machines Disabled . | . . . . Actions | -11 -10 -9 -9 --------- Run | Yrd Mat Mat Min Total 905 | 89 504 129 183 Wait 342 | 13 276 11 42 Move 457 | 52 182 112 111 Hop . | . . . . Pick Up 19 | 8 7 . 4 Fast Attach 7 | 7 . . . Attach 7 | . 1 2 4 Detach . | . . . . Swap 4 | . 3 . 1 Drop 6 | . 6 . . Fire 63 | 9 29 4 21 Melee . | . . . . Ram . | . . . . Kick . | . . . . Crush . | . . . . Escape Stasis . | . . . . Rewire . | . . . . Trap . | . . . . Miscellaneous . | . . . . Route ------- -11/Scrapyard -10/Materials -9/Materials -9/Mines History --------- Turn | Location | Event 7 | -11/Scrapyard | Discovered new exit (range 14) 114 | -11/Scrapyard | Entered Materials 317 | -10/Materials | Build established: Mutant 507 | -10/Materials | Discovered new exit (range 16) 737 | -10/Materials | Entered another Materials area 737 | -9/Materials | Evolved 2 slots: Utility x2 947 | -9/Materials | Discovered new exit (range 16) 975 | -9/Materials | Entered Mines 1022 | -9/Mines | Lost 3 parts (1n1u1w) 1057 | -9/Mines | Assembled infested the area 1097 | -9/Mines | Found a hidden stash of uninstalled traps 1261 | -9/Mines | Core integrity fell below 50% 1283 | -9/Mines | Lost 8 parts (1p2n3u2w) 1285 | -9/Mines | Core integrity fell below 20% 1297 | -9/Mines | Destroyed by D-53 Grenadier with Mini Grenade Launcher Last Messages --------------- 01213_ Aluminum Leg destroyed. 01218_ The unstable cave ceiling collapses. 01228_ Lgt. Assault Rifle destroyed. 01228_ Seismic Detector destroyed. 01235_ U-05 Engineer lays Concrete. 01236_ The unstable cave ceiling collapses. 01236_ U-05 Engineer lays Concrete. 01239_ The unstable cave ceiling collapses. 01239_ U-05 Engineer builds a Wall. 01243_ U-05 Engineer lays Concrete. 01243_ Aluminum Leg destroyed. 01243_ U-05 Engineer destroyed. 01252_ Imp. Heat Sink destroyed. 01252_ Lgt. Ion Engine destroyed. 01255_ The unstable cave ceiling collapses. 01263_ U-05 Engineer lays Concrete. 01277_ The unstable cave ceiling collapses. 01277_ U-05 Engineer lays Concrete. 01282_ The unstable cave ceiling collapses. 01282_ U-05 Engineer lays Concrete. Map ----- +----------------------------------------------------+ | ???????????????????????????????????????? | | ???????????????????????????????????????? | | ???????????????????????????????????????? | | ???????????????????????????????????????? | | ???????????????????????????????????????? | | ???????????????????????????????????????? | | ???????????????????????????????????????? | | ???????????????????????????????????????? | | ???????????????????????????????????????? | | ???????????????????????????????????????? | | ???????????????????????????????????????? | | ???????????????????????????????????????? | | ???????????????????????????????????????? | | ???????????????????????????????????????? | | ???????????????????????????????? ##??##? | | ???????????????????????????????? ## | | ???????????????????????????????? # | | ???????????????????????????????? %# ? | | ??????????????????????##???????? ### | | ???????????????####### #####???? % | | ??????????????## ##??? ? | | ??????????????# #### ##?? | | ?????????????## ## ### | | ????????????## ## | | ?????# ## #??? | | ????# tt @ d ##??? | | ???# """ ## #??? | | ????? ? """ #### #??? | | ???????? """ #####??### #??? | | ????????# ?????????#### ## ##?# | | ????????## ?????????########## ### | | ?????????# ?????????# # ## | | ?????????## ??????????# !!! # | | ??????????##??????????# ! ! | | ??????????????????????# ! | | ??????????????????????# !!! = * | | ??????????????????????# ! | | ??????????????????????## | | ???????????????????????###### # ## ## | | ????????????????????????????#####?#### | | ?????????????????????????????????????### | | ???????????????????????????????????????? | | | | | | | | | | | | | | | | | +----------------------------------------------------+ Best States ------------- Heat Dissipation 42 Energy Generation 14 Energy Capacity 160 Matter Stores 300 Matter Capacity 300 Sight Range 16 Terrain Scan Density 10 Armor Coverage 150 Evasion (%) 55 Item Schematics ----------------- None Robot Schematics ------------------ None Fabricated ------------ Nothing Repaired ---------- Nothing Studied --------- None Alien Tech Used ----------------- None Achievements -------------- None Challenges ------------ None Game ------ Seed HugeHoverSplitter Manual? 0 Play Time 00:16:44 Cumulative 74.3 hours Start 2026.04.15 @ 15:34:54 End 2026.04.15 @ 15:48:14 Sessions 1 Manual Loads 0 Difficulty Rogue Special Mode None Game No. 94 Rogue 94 Adventurer 0 Explorer 0 Win Type - Total 0 Types 0/0/0/0/0/0/0/0/0/0 Lore% 31 Gallery% 25 Achievement% 19 Wizard Run 0 Options --------- Layout 0 ASCII 0 Keyboard 0 Movement Mouse Keybinds 0 Fullscreen 1 Font 18/SmallcapsGlow Map View 76x50 Zoom Use 0% Tactical HUD 1 Map Filters NONE Filters LOW_CONTRAST(13,24,33) Steam 1 RUN: d0a76180-bfe1-4188-9dea-f47a6e0529c1